fUSD/lending_fUSD_20240424
["ID","MTS","AMOUNT","RATE_DAILY","PERIOD"]
[323450972,1713994250772,-566.01,0.00013048,2]
[323450973,1713994250782,-500.0,0.00013048,2]
[323450974,1713994250792,-500.0,0.00013048,2]
[323450975,1713994250802,-500.0,0.00013048,2]
[323450976,1713994250812,-500.0,0.00013048,2]
[323450977,1713994250821,-1295.55,0.00013048,2]
[323450978,1713994250831,-805.63,0.00013048,2]
[323450979,1713994250840,-744.72,0.00013048,2]
[323450980,1713994250850,-1001.09,0.00013048,2]
[323450981,1713994250860,-762.96,0.00013048,2]
[323450982,1713994250869,-500.0,0.00013048,2]
[323450983,1713994250879,-500.0,0.00013048,2]
[323450984,1713994250889,-2375.22,0.00013048,2]
[323450985,1713994250898,-681.19,0.00013048,2]
[323450986,1713994250907,-500.0,0.00013048,2]
[323450987,1713994250917,-500.0,0.00013048,2]
[323450988,1713994250927,-1008.99,0.00013048,2]
[323450989,1713994250937,-739.77,0.00013048,2]
[323450990,1713994250947,-780.92,0.00013048,2]
[323450991,1713994250956,-500.0,0.00013048,2]
[323450992,1713994250966,-500.0,0.00013048,2]
[323450993,1713994250976,-500.0,0.00013048,2]
[323450994,1713994250988,-500.0,0.00013048,2]
[323450995,1713994250998,-500.0,0.00013048,2]
[323450996,1713994251007,-500.0,0.00013048,2]
[323450997,1713994251016,-500.0,0.00013048,2]
[323450998,1713994251026,-552.8,0.00013048,2]
[323450999,1713994251036,-500.0,0.00013048,2]
[323451000,1713994251045,-866.8,0.00013048,2]
[323451001,1713994251055,-500.0,0.00013048,2]
[323451002,1713994251065,-500.0,0.00013048,2]
[323451003,1713994251075,-527.01,0.00013048,2]
[323451004,1713994251085,-500.0,0.00013148,2]
[323451005,1713994251095,-500.0,0.00013148,2]
[323451006,1713994251104,-517.5,0.00013148,2]
[323451007,1713994251113,-500.0,0.00013148,2]
[323451008,1713994251123,-500.0,0.00013148,2]
[323451009,1713994251133,-500.0,0.00013148,2]
[323451010,1713994251142,-500.0,0.00013148,2]
[323451011,1713994251152,-500.0,0.00013148,2]
[323451012,1713994251161,-500.0,0.00013148,2]
[323451013,1713994251171,-500.0,0.00013148,2]
[323451014,1713994251180,-500.0,0.00013148,2]
[323451015,1713994251189,-500.0,0.00013148,2]
[323451016,1713994251198,-375.40085873,0.00013149,2]
[323451017,1713994251208,-155.20120873,0.0001315,2]
[323451018,1713994251218,-1164.23,0.00013151,2]
[323451019,1713994251227,-970.2,0.00013151,2]
[323451020,1713994251236,-808.5,0.00013151,2]
[323451021,1713994251245,-673.75,0.00013151,2]
[323451022,1713994251254,-561.45,0.00013151,2]
[323451023,1713994251264,-467.88,0.00013151,2]
[323451024,1713994251273,-389.9,0.00013151,2]
[323451025,1713994251283,-324.92,0.00013151,2]
[323451026,1713994251292,-270.76,0.00013151,2]
[323451027,1713994251302,-225.64,0.00013151,2]
[323451028,1713994251311,-188.03,0.00013151,2]
[323451029,1713994251320,-156.69,0.00013151,2]
[323451030,1713994251330,-783.48,0.00013151,2]
[323451031,1713994251339,-245.72,0.00013211,2]
[323451032,1713994251348,-166.88,0.0001331,2]
[323451033,1713994251358,-500.0,0.00013322,2]
[323451034,1713994251367,-500.0,0.00013322,2]
[323451035,1713994251376,-500.0,0.00013322,2]
[323451036,1713994251387,-500.0,0.00013322,2]
[323451037,1713994251397,-500.0,0.00013322,2]
[323451038,1713994251406,-500.0,0.00013322,2]
[323451039,1713994251416,-500.0,0.00013322,2]
[323451040,1713994251425,-500.0,0.00013322,2]
[323451041,1713994251434,-500.0,0.00013322,2]
[323451042,1713994251444,-500.0,0.00013322,2]
[323451043,1713994251453,-500.0,0.00013322,2]
[323451044,1713994251462,-596.53,0.00013322,2]
[323451045,1713994251472,-500.0,0.00013322,2]
[323451046,1713994251481,-6720.95,0.00013322,2]
[323451047,1713994251491,-679.14,0.00013322,2]
[323451048,1713994251501,-500.0,0.00013322,2]
[323451049,1713994251510,-500.0,0.00013322,2]
[323451050,1713994251519,-690.97,0.00013322,2]
[323451051,1713994251528,-500.0,0.00013322,2]
[323451052,1713994251537,-500.0,0.00013322,2]
[323451053,1713994251547,-576.26,0.00013322,2]
[323451054,1713994251556,-500.0,0.00013322,2]
[323451055,1713994251565,-639.53,0.00013322,2]
[323451056,1713994251574,-667.03,0.00013322,2]
[323451057,1713994251583,-500.0,0.00013322,2]
[323451058,1713994251593,-540.46,0.00013322,2]
[323451059,1713994251602,-500.0,0.00013322,2]
[323451060,1713994251612,-820.55,0.00013322,2]
[323451061,1713994251622,-890.33,0.00013322,2]
[323451062,1713994251632,-500.0,0.00013322,2]
[323451063,1713994251640,-599.08,0.00013322,2]
[323451064,1713994251650,-668.02,0.00013322,2]
[323451065,1713994251659,-734.15,0.00013322,2]
[323451066,1713994251669,-500.0,0.00013322,2]
[323451067,1713994251678,-500.0,0.00013322,2]
[323451068,1713994251687,-2942.49,0.00013322,2]
[323451069,1713994251696,-2992.64,0.00013322,2]
[323451070,1713994251706,-742.71,0.00013322,2]
[323451071,1713994251715,-2765.33,0.00013322,2]
[323451072,1713994251725,-692.73,0.00013322,2]
[323451073,1713994251734,-500.0,0.00013322,2]
[323451074,1713994251744,-29806.57,0.00013322,2]
[323451075,1713994251753,-544.34,0.00013322,2]
[323451076,1713994251763,-500.0,0.00013322,2]
[323451077,1713994251773,-500.0,0.00013322,2]
[323451078,1713994251782,-492.96785434,0.00013322,2]
[323451079,1713994251792,-500.0,0.00013322,2]
[323451080,1713994251802,-500.0,0.00013322,2]
[323451081,1713994251812,-507.2,0.00013322,2]
[323451082,1713994251821,-500.0,0.00013322,2]
[323451083,1713994251831,-500.0,0.00013322,2]
[323451084,1713994251841,-772.57,0.00013322,2]
[323451085,1713994251850,-589.27,0.00013322,2]
[323451086,1713994251860,-500.0,0.00013322,2]
[323451087,1713994251870,-558.04,0.00013322,2]
[323451088,1713994251880,-500.0,0.00013322,2]
[323451089,1713994251889,-500.0,0.00013322,2]
[323451090,1713994251899,-500.0,0.00013322,2]
[323451091,1713994251908,-761.06,0.00013322,2]
[323451092,1713994251918,-500.0,0.00013322,2]
[323451093,1713994251927,-5231.51,0.00013322,2]
[323451094,1713994251936,-500.0,0.00013322,2]
[323451095,1713994251946,-500.0,0.00013322,2]
[323451096,1713994251955,-762.83,0.00013322,2]
[323451097,1713994251965,-500.0,0.00013322,2]
[323451098,1713994251977,-8042.82,0.00013322,2]
[323451099,1713994251988,-500.0,0.00013322,2]
[323451100,1713994251997,-500.0,0.00013322,2]
[323451101,1713994252007,-797.66,0.00013322,2]
[323451102,1713994252017,-874.98,0.00013322,2]
[323451103,1713994252027,-566.01,0.00013322,2]
[323451104,1713994252036,-275.71138339,0.00013322,2]
[323451105,1713994252046,-247.48749225,0.00013322,2]
[323451106,1713994252056,-500.0,0.00013322,2]
[323451107,1713994252065,-500.0,0.00013322,2]
[323451108,1713994252074,-1295.55,0.00013322,2]
[323451109,1713994252084,-805.63,0.00013322,2]
[323451110,1713994252093,-744.72,0.00013322,2]
[323451111,1713994252102,-1001.09,0.00013322,2]
[323451112,1713994252111,-762.96,0.00013322,2]
[323451113,1713994252122,-500.0,0.00013322,2]
[323451114,1713994252131,-500.0,0.00013322,2]
[323451115,1713994252142,-2375.22,0.00013322,2]
[323451116,1713994252151,-681.19,0.00013322,2]
[323451117,1713994252161,-500.0,0.00013322,2]
[323451118,1713994252171,-500.0,0.00013322,2]
[323451119,1713994252182,-1008.99,0.00013322,2]
[323451120,1713994252192,-739.77,0.00013322,2]
[323451121,1713994252201,-780.92,0.00013322,2]
[323451122,1713994252210,-500.0,0.00013322,2]
[323451123,1713994252220,-500.0,0.00013322,2]
[323451124,1713994252230,-500.0,0.00013322,2]
[323451125,1713994252240,-500.0,0.00013322,2]
[323451126,1713994252249,-500.0,0.00013322,2]
[323451127,1713994252259,-500.0,0.00013322,2]
[323451128,1713994252269,-500.0,0.00013322,2]
[323451129,1713994252278,-552.8,0.00013322,2]
[323451130,1713994252287,-500.0,0.00013322,2]
[323451131,1713994252297,-866.8,0.00013322,2]
[323451132,1713994252306,-500.0,0.00013322,2]
[323451133,1713994252316,-500.0,0.00013322,2]
[323451134,1713994252325,-527.01,0.00013322,2]
[323451135,1713994252336,-3778.9,0.0001337,10]
[323451136,1713994252346,-500.0,0.00013422,2]
[323451137,1713994252356,-500.0,0.00013422,2]
[323451138,1713994252366,-517.5,0.00013422,2]
[323451139,1713994252376,-162.33535036,0.00013422,2]
[323451140,1713994252386,-500.0,0.00013422,2]
[323451141,1713994252396,-337.72349632,0.00013422,2]
[323451142,1713994252406,-500.0,0.00013422,2]
[323451143,1713994252416,-500.0,0.00013422,2]
[323451144,1713994252425,-500.0,0.00013422,2]
[323451145,1713994252436,-500.0,0.00013422,2]
[323451146,1713994252446,-500.0,0.00013422,2]
[323451147,1713994252455,-500.0,0.00013422,2]
[323451148,1713994252465,-22267.9,0.00013425,2]
[323451149,1713994252474,-500.0,0.00013425,2]
[323451150,1713994252485,-1132.64330683,0.00013425,2]
[323451151,1713994252494,-8123.45331817,0.00013536,2]
[323451152,1713994252503,-150.0,0.00013564,2]
[323451153,1713994252513,-500.0,0.00013596,2]
[323451154,1713994252523,-500.0,0.00013596,2]
[323451155,1713994252533,-500.0,0.00013596,2]
[323451156,1713994252544,-500.0,0.00013596,2]
[323451157,1713994252553,-500.0,0.00013596,2]
[323451158,1713994252562,-500.0,0.00013596,2]
[323451159,1713994252572,-532.20548889,0.00013596,2]
[323451160,1713994252583,-500.0,0.00013596,2]
[323451161,1713994252594,-500.0,0.00013596,2]
[323451162,1713994252604,-500.0,0.00013596,2]
[323451163,1713994252615,-500.0,0.00013596,2]
[323451164,1713994252624,-596.53,0.00013596,2]
[323451165,1713994252633,-500.0,0.00013596,2]
[323451166,1713994252642,-6720.95,0.00013596,2]
[323451167,1713994252652,-679.14,0.00013596,2]
[323451168,1713994252661,-500.0,0.00013596,2]
[323451169,1713994252670,-500.0,0.00013596,2]
[323451170,1713994252680,-690.97,0.00013596,2]
[323451171,1713994252689,-500.0,0.00013596,2]
[323451172,1713994252697,-500.0,0.00013596,2]
[323451173,1713994252707,-576.26,0.00013596,2]
[323451174,1713994252716,-500.0,0.00013596,2]
[323451175,1713994252726,-639.53,0.00013596,2]
[323451176,1713994252736,-667.03,0.00013596,2]
[323451177,1713994252745,-540.46,0.00013596,2]
[323451178,1713994252754,-500.0,0.00013596,2]
[323451179,1713994252763,-820.55,0.00013596,2]
[323451180,1713994252772,-890.33,0.00013596,2]
[323451181,1713994252781,-500.0,0.00013596,2]
[323451182,1713994252790,-599.08,0.00013596,2]
[323451183,1713994252800,-668.02,0.00013596,2]
[323451184,1713994252809,-734.15,0.00013596,2]
[323451185,1713994252818,-500.0,0.00013596,2]
[323451186,1713994252827,-500.0,0.00013596,2]
[323451187,1713994252836,-2942.49,0.00013596,2]
[323451188,1713994252845,-742.71,0.00013596,2]
[323451189,1713994252854,-2992.64,0.00013596,2]
[323451190,1713994252863,-2765.33,0.00013596,2]
[323451191,1713994252873,-692.73,0.00013596,2]
[323451192,1713994252884,-500.0,0.00013596,2]
[323451193,1713994252893,-29806.57,0.00013596,2]
[323451194,1713994252902,-544.34,0.00013596,2]
[323451195,1713994252912,-500.0,0.00013596,2]
[323451196,1713994252921,-500.0,0.00013596,2]
[323451197,1713994252931,-500.0,0.00013596,2]
[323451198,1713994252941,-500.0,0.00013596,2]
[323451199,1713994252951,-507.2,0.00013596,2]
[323451200,1713994252960,-500.0,0.00013596,2]
[323451201,1713994252970,-500.0,0.00013596,2]
[323451202,1713994252985,-772.57,0.00013596,2]
[323451203,1713994252994,-589.27,0.00013596,2]
[323451204,1713994253003,-500.0,0.00013596,2]
[323451205,1713994253012,-558.04,0.00013596,2]
[323451206,1713994253023,-500.0,0.00013596,2]
[323451207,1713994253032,-500.0,0.00013596,2]
[323451208,1713994253042,-500.0,0.00013596,2]
[323451209,1713994253051,-761.06,0.00013596,2]
[323451210,1713994253062,-500.0,0.00013596,2]
[323451211,1713994253073,-5231.51,0.00013596,2]
[323451212,1713994253083,-500.0,0.00013596,2]
[323451213,1713994253092,-500.0,0.00013596,2]
[323451214,1713994253101,-762.83,0.00013596,2]
[323451215,1713994253110,-500.0,0.00013596,2]
[323451216,1713994253119,-8042.82,0.00013596,2]
[323451217,1713994253129,-500.0,0.00013596,2]
[323451218,1713994253138,-500.0,0.00013596,2]
[323451219,1713994253148,-797.66,0.00013596,2]
[323451220,1713994253158,-874.98,0.00013596,2]
[323451221,1713994253168,-566.01,0.00013596,2]
[323451222,1713994253178,-500.0,0.00013596,2]
[323451223,1713994253187,-500.0,0.00013596,2]
[323451224,1713994253198,-1295.55,0.00013596,2]
[323451225,1713994253209,-805.63,0.00013596,2]
[323451226,1713994253219,-744.72,0.00013596,2]
[323451227,1713994253228,-1001.09,0.00013596,2]
[323451228,1713994253238,-762.96,0.00013596,2]
[323451229,1713994253248,-500.0,0.00013596,2]
[323451230,1713994253258,-500.0,0.00013596,2]
[323451231,1713994253270,-2375.22,0.00013596,2]
[323451232,1713994253280,-681.19,0.00013596,2]
[323451233,1713994253291,-500.0,0.00013596,2]
[323451234,1713994253302,-500.0,0.00013596,2]
[323451235,1713994253312,-1008.99,0.00013596,2]
[323451236,1713994253322,-739.77,0.00013596,2]
[323451237,1713994253332,-780.92,0.00013596,2]
[323451238,1713994253341,-500.0,0.00013596,2]
[323451239,1713994253351,-500.0,0.00013596,2]
[323451240,1713994253361,-500.0,0.00013596,2]
[323451241,1713994253370,-500.0,0.00013596,2]
[323451242,1713994253381,-500.0,0.00013596,2]
[323451243,1713994253393,-500.0,0.00013596,2]
[323451244,1713994253403,-500.0,0.00013596,2]
[323451245,1713994253412,-552.8,0.00013596,2]
[323451246,1713994253422,-500.0,0.00013596,2]
[323451247,1713994253434,-866.8,0.00013596,2]
[323451248,1713994253445,-500.0,0.00013596,2]
[323451249,1713994253455,-500.0,0.00013596,2]
[323451250,1713994253465,-150.0,0.00013627,2]
[323451251,1713994253475,-500.0,0.00013696,2]
[323451252,1713994253486,-500.0,0.00013696,2]
[323451253,1713994253496,-517.5,0.00013696,2]
[323451254,1713994253506,-500.0,0.00013696,2]
[323451255,1713994253516,-500.0,0.00013696,2]
[323451256,1713994253526,-500.0,0.00013696,2]
[323451257,1713994253536,-500.0,0.00013696,2]
[323451258,1713994253546,-500.0,0.00013696,2]
[323451259,1713994253556,-500.0,0.00013696,2]
[323451260,1713994253565,-500.0,0.00013696,2]
[323451261,1713994253575,-191.46244167,0.00013697,2]
[323451262,1713994253587,-199.29265944,0.00013697,2]
[323451263,1713994253597,-2148.57485958,0.00013698,2]
[323451264,1713994253609,-949.0,0.00013698,2]
[323451265,1713994253618,-1000.0,0.00013698,2]
[323451266,1713994253629,-520.0,0.00013698,2]
[323451267,1713994253639,-536.90700774,0.00013698,2]
[323451268,1713994253649,-1488.37,0.00013698,2]
[323451269,1713994253659,-200.0,0.00013699,2]
[323451270,1713994253669,-200.0,0.00013699,2]
[323451271,1713994253678,-200.0,0.00013699,2]
[323451272,1713994253688,-200.0,0.00013699,2]
[323451273,1713994253698,-200.0,0.00013699,2]
[323451274,1713994253708,-200.0,0.00013699,2]
[323451275,1713994253717,-200.0,0.00013699,2]
[323451276,1713994253727,-500.0,0.00013699,2]
[323451277,1713994253737,-200.0,0.00013699,2]
[323451278,1713994253746,-1000.0,0.00013699,2]
[323451279,1713994253756,-1000.0,0.00013699,2]
[323451280,1713994253765,-1000.0,0.00013699,2]
[323451281,1713994253775,-1000.0,0.00013699,2]
[323451282,1713994253785,-1000.0,0.00013699,2]
[323451283,1713994253794,-1000.0,0.00013699,2]
[323451284,1713994253803,-1000.0,0.00013699,2]
[323451285,1713994253812,-1000.0,0.00013699,2]
[323451286,1713994253822,-1000.0,0.00013699,2]
[323451287,1713994253831,-1000.0,0.00013699,2]
[323451288,1713994253841,-1000.0,0.00013699,2]
[323451289,1713994253850,-1000.0,0.00013699,2]
[323451290,1713994253860,-1000.0,0.00013699,2]
[323451291,1713994253869,-1000.0,0.00013699,2]
[323451292,1713994253878,-1000.0,0.00013699,2]
[323451293,1713994253889,-1000.0,0.00013699,2]
[323451294,1713994253899,-1000.0,0.00013699,2]
[323451295,1713994253908,-1000.0,0.00013699,2]
[323451296,1713994253918,-1000.0,0.00013699,2]
[323451297,1713994253927,-1000.0,0.00013699,2]
[323451298,1713994253936,-1000.0,0.00013699,2]
[323451299,1713994253946,-1000.0,0.00013699,2]
[323451300,1713994253955,-1000.0,0.00013699,2]
[323451301,1713994253965,-1000.0,0.00013699,2]
[323451302,1713994253974,-1000.0,0.00013699,2]
[323451303,1713994253987,-1000.0,0.00013699,2]
[323451304,1713994253997,-2751.0,0.00013699,2]
[323451305,1713994254006,-250.0,0.00013699,2]
[323451306,1713994254015,-341.95,0.00013699,2]
[323451307,1713994254026,-1000.0,0.00013699,2]
[323451308,1713994254035,-1000.0,0.00013699,2]
[323451309,1713994254044,-1000.0,0.00013699,2]
[323451310,1713994254055,-1000.0,0.00013699,2]
[323451311,1713994254065,-1000.0,0.00013699,2]
[323451312,1713994254075,-1000.0,0.00013699,2]
[323451313,1713994254084,-1000.0,0.00013699,2]
[323451314,1713994254094,-1000.0,0.00013699,2]
[323451315,1713994254104,-1000.0,0.00013699,2]
[323451316,1713994254113,-1000.0,0.00013699,2]
[323451317,1713994254123,-1000.0,0.00013699,2]
[323451318,1713994254132,-1000.0,0.00013699,2]
[323451319,1713994254142,-1000.0,0.00013699,2]
[323451320,1713994254151,-1000.0,0.00013699,2]
[323451321,1713994254160,-1000.0,0.00013699,2]
[323451322,1713994254170,-1000.0,0.00013699,2]
[323451323,1713994254179,-1000.0,0.00013699,2]
[323451324,1713994254188,-638.0,0.00013699,2]
[323451325,1713994254198,-1000.0,0.00013699,2]
[323451326,1713994254207,-1000.0,0.00013699,2]
[323451327,1713994254217,-1000.0,0.00013699,2]
[323451328,1713994254226,-1000.0,0.00013699,2]
[323451329,1713994254235,-1000.0,0.00013699,2]
[323451330,1713994254244,-1000.0,0.00013699,2]
[323451331,1713994254254,-1000.0,0.00013699,2]
[323451332,1713994254264,-1000.0,0.00013699,2]
[323451333,1713994254273,-1000.0,0.00013699,2]
[323451334,1713994254285,-1000.0,0.00013699,2]
[323451335,1713994254295,-1000.0,0.00013699,2]
[323451336,1713994254304,-150.0,0.00013699,2]
[323451337,1713994254314,-250.0,0.000137,2]
[323451338,1713994254326,-1953.99,0.000137,2]
[323451339,1713994254337,-1953.99,0.000137,2]
[323451340,1713994254347,-1953.99,0.000137,2]
[323451341,1713994254357,-1245.86,0.000137,2]
[323451342,1713994254366,-1245.86,0.000137,2]
[323451343,1713994254376,-1245.86,0.000137,2]
[323451344,1713994254386,-1245.86,0.000137,2]
[323451345,1713994254396,-1245.86,0.000137,2]
[323451346,1713994254406,-400.808282,0.0001374,2]
[323451347,1713994254415,-200.0,0.00013822,2]
[323451348,1713994254425,-500.0,0.0001387,2]
[323451349,1713994254434,-500.0,0.0001387,2]
[323451350,1713994254444,-500.0,0.0001387,2]
[323451351,1713994254454,-500.0,0.0001387,2]
[323451352,1713994254464,-500.0,0.0001387,2]
[323451353,1713994254474,-500.0,0.0001387,2]
[323451354,1713994254484,-500.0,0.0001387,2]
[323451355,1713994254494,-500.0,0.0001387,2]
[323451356,1713994254504,-500.0,0.0001387,2]
[323451357,1713994254514,-500.0,0.0001387,2]
[323451358,1713994254524,-596.53,0.0001387,2]
[323451359,1713994254534,-500.0,0.0001387,2]
[323451360,1713994254543,-6720.95,0.0001387,2]
[323451361,1713994254553,-679.14,0.0001387,2]
[323451362,1713994254563,-500.0,0.0001387,2]
[323451363,1713994254573,-500.0,0.0001387,2]
[323451364,1713994254582,-690.97,0.0001387,2]
[323451365,1713994254593,-500.0,0.0001387,2]
[323451366,1713994254605,-500.0,0.0001387,2]
[323451367,1713994254615,-576.26,0.0001387,2]
[323451368,1713994254626,-500.0,0.0001387,2]
[323451369,1713994254636,-639.53,0.0001387,2]
[323451370,1713994254647,-667.03,0.0001387,2]
[323451371,1713994254656,-540.46,0.0001387,2]
[323451372,1713994254666,-500.0,0.0001387,2]
[323451373,1713994254676,-820.55,0.0001387,2]
[323451374,1713994254686,-890.33,0.0001387,2]
[323451375,1713994254698,-500.0,0.0001387,2]
[323451376,1713994254708,-599.08,0.0001387,2]
[323451377,1713994254718,-668.02,0.0001387,2]
[323451378,1713994254727,-734.15,0.0001387,2]
[323451379,1713994254737,-500.0,0.0001387,2]
[323451380,1713994254746,-500.0,0.0001387,2]
[323451381,1713994254756,-2942.49,0.0001387,2]
[323451382,1713994254766,-742.71,0.0001387,2]
[323451383,1713994254776,-2992.64,0.0001387,2]
[323451384,1713994254786,-2765.33,0.0001387,2]
[323451385,1713994254797,-692.73,0.0001387,2]
[323451386,1713994254807,-500.0,0.0001387,2]
[323451387,1713994254817,-29806.57,0.0001387,2]
[323451388,1713994254831,-544.34,0.0001387,2]
[323451389,1713994254841,-500.0,0.0001387,2]
[323451390,1713994254853,-432.53594504,0.0001387,2]
[323451391,1713994254863,-500.0,0.0001387,2]
[323451392,1713994254874,-500.0,0.0001387,2]
[323451393,1713994254885,-507.2,0.0001387,2]
[323451394,1713994254895,-500.0,0.0001387,2]
[323451395,1713994254906,-500.0,0.0001387,2]
[323451396,1713994254915,-772.57,0.0001387,2]
[323451397,1713994254925,-589.27,0.0001387,2]
[323451398,1713994254935,-500.0,0.0001387,2]
[323451399,1713994254945,-558.04,0.0001387,2]
[323451400,1713994254955,-500.0,0.0001387,2]
[323451401,1713994254964,-500.0,0.0001387,2]
[323451402,1713994254974,-460.51,0.0001387,2]
[323451403,1713994254988,-761.06,0.0001387,2]
[323451404,1713994254998,-500.0,0.0001387,2]
[323451405,1713994255008,-5231.51,0.0001387,2]
[323451406,1713994255017,-500.0,0.0001387,2]
[323451407,1713994255029,-500.0,0.0001387,2]
[323451408,1713994255039,-762.83,0.0001387,2]
[323451409,1713994255050,-500.0,0.0001387,2]
[323451410,1713994255062,-8042.82,0.0001387,2]
[323451411,1713994255073,-265.96181364,0.0001387,2]
[323451412,1713994255083,-500.0,0.0001387,2]
[323451413,1713994255093,-797.66,0.0001387,2]
[323451414,1713994255103,-874.98,0.0001387,2]
[323451415,1713994255113,-566.01,0.0001387,2]
[323451416,1713994255122,-500.0,0.0001387,2]
[323451417,1713994255132,-500.0,0.0001387,2]
[323451418,1713994255143,-1295.55,0.0001387,2]
[323451419,1713994255153,-805.63,0.0001387,2]
[323451420,1713994255163,-744.72,0.0001387,2]
[323451421,1713994255173,-1001.09,0.0001387,2]
[323451422,1713994255183,-762.96,0.0001387,2]
[323451423,1713994255193,-500.0,0.0001387,2]
[323451424,1713994255203,-500.0,0.0001387,2]
[323451425,1713994255215,-2375.22,0.0001387,2]
[323451426,1713994255225,-681.19,0.0001387,2]
[323451427,1713994255235,-500.0,0.0001387,2]
[323451428,1713994255247,-500.0,0.0001387,2]
[323451429,1713994255259,-1008.99,0.0001387,2]
[323451430,1713994255270,-739.77,0.0001387,2]
[323451431,1713994255280,-780.92,0.0001387,2]
[323451432,1713994255290,-297.39865525,0.0001387,2]
[323451433,1713994255300,-500.0,0.0001387,2]
[323451434,1713994255311,-500.0,0.0001387,2]
[323451435,1713994255320,-500.0,0.0001387,2]
[323451436,1713994255330,-500.0,0.0001387,2]
[323451437,1713994255340,-500.0,0.0001387,2]
[323451438,1713994255351,-500.0,0.0001387,2]
[323451439,1713994255362,-552.8,0.0001387,2]
[323451440,1713994255373,-500.0,0.0001387,2]
[323451441,1713994255382,-866.8,0.0001387,2]
[323451442,1713994255393,-500.0,0.0001387,2]
[323451443,1713994255404,-500.0,0.0001387,2]
[323451444,1713994255415,-400.808282,0.00013911,2]
[323451445,1713994255425,-170.95368943,0.00013927,2]
[323451446,1713994255434,-995.26,0.0001394,2]
[323451447,1713994255444,-166.88,0.00013948,2]
[323451448,1713994255454,-500.0,0.0001397,2]
[323451449,1713994255463,-500.0,0.0001397,2]
[323451450,1713994255474,-517.5,0.0001397,2]
[323451451,1713994255483,-500.0,0.0001397,2]
[323451452,1713994255494,-500.0,0.0001397,2]
[323451453,1713994255504,-500.0,0.0001397,2]
[323451454,1713994255516,-500.0,0.0001397,2]
[323451455,1713994255528,-500.0,0.0001397,2]
[323451456,1713994255538,-500.0,0.0001397,2]
[323451457,1713994255548,-500.0,0.0001397,2]
[323451458,1713994255559,-155.28993057,0.00014,2]
[323451459,1713994255569,-2800.0,0.00014,2]
[323451460,1713994255580,-284.97,0.00014,2]
[323451461,1713994255590,-284.97,0.00014,2]
[323451462,1713994255601,-284.97,0.00014,2]
[323451463,1713994255613,-200.0,0.00014053,2]
[323451464,1713994255623,-400.808282,0.00014083,2]
[323451465,1713994255633,-1000.0,0.00014132,2]
[323451466,1713994255643,-500.0,0.00014144,2]
[323451467,1713994255653,-500.0,0.00014144,2]
[323451468,1713994255663,-500.0,0.00014144,2]
[323451469,1713994255673,-500.0,0.00014144,2]
[323451470,1713994255683,-500.0,0.00014144,2]
[323451471,1713994255693,-500.0,0.00014144,2]